Workbook

Sheet Výpočet
B2: Eccentricity EC6 v1.0 | N2: Lists
B3: Utility for determination of masonry walls load eccentricity according to Appendix C of Eurocode 6 | N3: HIDE!!!
B7: 0. | C7: Loading scheme of the structure, sign convention for wall moments | N7: Fixed
N8: Hinge
N9: --select--
N11: Fixed
N12: Hinge
N13: Member does not exist
N14: --select--
N16: Category I, designed mortar
N17: Category I, prescribed mortar
N18: Category II
N19: --select--
C21: ▪ | D21: Support types will be specified in further calculation steps | N21: =CONCATENATE(VLOOKUP(J72,Materiály!C23:D28,2,FALSE)," %") -> ≤ 25 %
C22: ▪ | D22: For slab moments, positive moment causes tension in lower part of the slab | N22: =IF(VLOOKUP(J72,Materiály!C23:H28,3,FALSE)="not used","",CONCATENATE(VLOOKUP(J72,Materiály!C23:H28,3,FALSE)," %, vertical holes")) -> 25 - 60 %, vertical holes
C23: ▪ | D23: Width of the model is considered as b = 1 m | N23: =IF(VLOOKUP(J72,Materiály!C23:H28,4,FALSE)="not used","",CONCATENATE(VLOOKUP(J72,Materiály!C23:H28,4,FALSE)," %, vetical holes")) -> 60 - 70 %, vetical holes
N24: =IF(VLOOKUP(J72,Materiály!C23:I28,6,FALSE)="not used","",CONCATENATE(VLOOKUP(J72,Materiály!C23:I28,6,FALSE)," %, horizontal holes")) -> 25 - 70 %, horizontal holes
B26: 1. | C26: Geometry | N26: =Materiály!C32 -> in the air (by reaching 6% moisture content)
N27: =Materiály!C33 -> by saturation (under the water)
C28: 1.1. | D28: Members, support type in the end opposite to the joint | N28: =Materiály!C34 -> by drying (by reaching dried state)
D29: ▪ | E29: Lower wall (member 1) | G29: =IF(J30=0,"Select lower wall support!!!","") ->  | H29: Fixed | N29: --select--
E30: => Stiffness factor of the member | H30: n1 | I30: = | J30: =IF(H29="Fixed",4,IF(H29="Hinge",3,0)) -> 4
D31: ▪ | E31: Upper wall (member 2) | H31: Fixed | N31: =Materiály!C54 -> clay
E32: => Stiffness factor of the member | H32: n2 | I32: = | J32: =IF(H31="Fixed",4,IF(H31="Hinge",3,0)) -> 4 | N32: =Materiály!C58 -> calcium silicate
D33: ▪ | E33: Left span of the slab (member 3) | G33: =IF(AND(J34=0,J36=0),"At least one horizontal member must be connected to the joint!!!","") ->  | H33: Member does not exist | N33: =Materiály!C60 -> concrete
E34: => Stiffness factor of the member | H34: n3 | I34: = | J34: =IF(H33="Fixed",4,IF(H33="Hinge",3,0)) -> 0 | N34: =Materiály!C64 -> autoclaved aerated concrete
D35: ▪ | E35: Right span of the slab (member 4) | H35: Fixed | N35: =Materiály!C65 -> manufactured stone
E36: => Stiffness factor of the member | H36: n4 | I36: = | J36: =IF(H35="Fixed",4,IF(H35="Hinge",3,0)) -> 4 | N36: =Materiály!C66 -> dimensioned natural stone
N37: --select--
C38: 1.2. | D38: Member lengths
D39: ▪ | E39: Clear height of wall 1 | H39: h1 | I39: = | J39: 2750 | K39: mm | N39: =Materiály!E53 -> general purpose
D40: ▪ | E40: Clear height of wall 2 | H40: h2 | I40: = | J40: 2750 | K40: mm | N40: =Materiály!F53 -> thin layer (0,5-3 mm)
D41: ▪ | E41: Clear span of slab 3 | H41: l3 | I41: = | J41: 0 | K41: mm | N41: =Materiály!H53 -> lightweight (600 - 800 kg.m-3)
D42: ▪ | E42: Clear span of slab 4 | H42: l4 | I42: = | J42: 5000 | K42: mm | N42: =Materiály!J53 -> lightweight (800-1300 kg.m-3)
N43: --select--
C44: 1.3. | D44: Thickness of the cross-section
D45: ▪ | E45: Wall 1 | H45: t1 | I45: = | J45: 440 | K45: mm | N45: Yes
D46: ▪ | E46: Wall 2 | H46: t2 | I46: = | J46: 440 | K46: mm | N46: No
D47: ▪ | E47: Slab 3 | H47: t3 | I47: = | J47: 0 | K47: mm | N47: --select--
D48: ▪ | E48: Slab 4 | H48: t4 | I48: = | J48: 200 | K48: mm
C50: 1.4. | D50: Moments of inertia
D51: ▪ | E51: Wall 1 | H51: I1 | I51: = | J51: =1/12*1000*POWER(J45,3) -> 7098666667 | K51: mm4
D52: ▪ | E52: Wall 2 | H52: I2 | I52: = | J52: =1/12*1000*POWER(J46,3) -> 7098666667 | K52: mm4
D53: ▪ | E53: Slab 3 | H53: I3 | I53: = | J53: =1/12*1000*POWER(J47,3) -> 0 | K53: mm4
D54: ▪ | E54: Slab 4 | H54: I4 | I54: = | J54: =1/12*1000*POWER(J48,3) -> 666666666.7 | K54: mm4
B57: 2. | C57: Material properties
C59: 2.1. | D59: Partial factor for masonry gM
D60: ▪ | E60: Masonry made with units of | G60: Category I, designed mortar
D61: ▪ | E61: Material of masonry units | G61: concrete
D62: => | E62: Partial factor for masonry | H62: gM | I62: = | J62: =VLOOKUP(G60,Materiály!C7:H9,IF(G61="porobetonové tvárnice",3,5),FALSE) -> 2
C64: 2.2. | D64: Compressive strength of the masonry - lower wall | J64: 1
D65: Direct input of the value | H65: fk1 | I65: = | J65: 5.4 | K65: MPa
D66: Determination of the value by calculation
D67: ▪ | E67: Length of one masonry unit | H67: dp1 | I67: = | J67: 290 | K67: mm
D68: ▪ | E68: Width of one masonry unit | H68: bp1 | I68: = | J68: 140 | K68: mm
D69: ▪ | E69: Height of one masonry unit | H69: hp1 | I69: = | J69: 65 | K69: mm
D71: ▪ | E71: Group of masonry units
E72: ▪ | F72: Material of masonry units | J72: =G61 -> concrete
E73: ▪ | F73: Volume of holes in % | G73: ≤ 25 %
E74: => | F74: Group of masonry units | J74: =IF(OR(J72="--select--",G73="--select--",G73=""),"Select material (J61) and % of holes (J73)",IF(G73=N21,1,IF(G73=N22,2,IF(G73=N23,3,IF(G73=N24,4))))) -> 1
D76: ▪ | E76: Normalised mean compressive strength of the units fb
E77: ▪ | F77: Strength of the material of masonry units (label) | H77: fu1 | I77: = | J77: 10 | K77: MPa
E78: ▪ | F78: Conditioning method (usually: in the air) | G78: in the air (by reaching 6% moisture content)
E79: ▪ | F79: Factor expressing the effect of conditioning method | H79: h1 | I79: = | J79: =VLOOKUP(G78,Materiály!C32:G34,5,FALSE) -> 1
E80: ▪ | F80: Factor expressing the effect of dimensions of the unit | H80: d1 | I80: = | J80: =Materiály!L45 -> 0.77
E81: => | F81: Normalised mean compressive strength of the units | H81: fb1 | I81: = | J81: =J77*J79*J80 -> 7.7 | K81: MPa
D83: ▪ | E83: Compressive strength of the mortar (label) | H83: fm1 | I83: = | J83: 10 | K83: MPa
D84: ▪ | E84: Coefficient K
E85: ▪ | F85: Material of masonry units | G85: =J72 -> concrete
E86: ▪ | F86: Mortar | G86: general purpose
E87: ▪ | F87: Group of masonry units | J87: =J74 -> 1
E88: ▪ | F88: Is there a longitudinal perpend joint in the masonry? (=> multiply table value of K by 0.8?) | J88: No
E89: => | F89: Coefficient K | H89: K1 | I89: = | J89: =IF(J88="Yes",0.8*Mapping!M26,Mapping!M26) -> 0.45
D91: ▪ | E91: Characteristic compressive strength of the masonry | J91: =IF(J90="X","The combination of mortar and masonry unit is not used, values are not defined"," ") -> 
E92: ▪ | F92: Value of fb considered (fb ≤ 50 MPa if thin layer mortar is used, fb ≤ 75 Mpa otherwise) | H92: fb1 | I92: = | J92: =MIN(J81,IF(G86="thin layer (0,5-3 mm)",50,75)) -> 7.7 | K92: MPa
E93: ▪ | F93: Value of fm (fm ≤ 10 MPa if thin layer mortar is considered, fm ≤ min(20 MPa, 2fb) otherwise) | H93: fm1 | I93: = | J93: =MIN(J83,IF(G86="thin layer (0,5-3 mm)",10,MIN(20,2*J92))) -> 10 | K93: MPa
E95: => | F95: Characteristic compressive strength of the masonry | H95: fk1 | I95: = | J95: =IF(G86="thin layer (0,5-3 mm)",IF(AND(G61="clay",OR(J74=2,J74=3)),J89*POWER(J92,0.7),J89*POWER(J92,0.85)),J89*POWER(J92,0.7)*POWER(J93,0.3)) -> 3.747624085 | K95: MPa
F96: Formula used for calculation of characteristic compressive strength of the masonry:
F97: ▪ Masonry made with general purpose or lightweight mortar
F98: ▪ Masonry made with thin layer mortar, clay masonry units of groups 2 or 3
F99: ▪ Masonry made with thin layer mortar, masonry units other than clay units of groups 2 or 3
D100: => | E100: Characteristic compressive strength of the masonry - lower wall | H100: fk1 | I100: = | J100: =IF(J64=1,J65,IF(J64=2,J95,"Select option")) -> 5.4 | K100: MPa
C102: 2.3. | D102: Compressive strength of the masonry - upper wall | J102: 1
D103: Adopt the value from lower wall
D104: Insert another value than for lower wall | H104: fk2 | I104: = | K104: MPa
D105: Determination of the value by calculation
D106: ▪ | E106: Length of one masonry unit | H106: dp2 | I106: = | J106: 290 | K106: mm
D107: ▪ | E107: Width of one masonry unit | H107: bp2 | I107: = | J107: 140 | K107: mm
D108: ▪ | E108: Height of one masonry unit | H108: hp2 | I108: = | J108: 65 | K108: mm
D110: ▪ | E110: Group of masonry units
E111: ▪ | F111: Material of masonry units | J111: =G61 -> concrete
E112: ▪ | F112: Volume of holes in % | G112: ≤ 25 %
E113: => | F113: Group of masonry units | J113: =IF(OR(J111="--select--",G112="--select--",G112=""),"Select material (J61) and % of holes (J112)",IF(G112=N21,1,IF(G112=N22,2,IF(G112=N23,3,IF(G112=N24,4))))) -> 1
D115: ▪ | E115: Normalised mean compressive strength of the units fb
E116: ▪ | F116: Strength of the material of masonry units (label) | H116: fu2 | I116: = | J116: 10 | K116: MPa
E117: ▪ | F117: Conditioning method (usually: in the air) | G117: in the air (by reaching 6% moisture content)
E118: ▪ | F118: Factor expressing the effect of conditioning method | H118: h2 | I118: = | J118: =VLOOKUP(G117,Materiály!C32:G34,5,FALSE) -> 1
E119: ▪ | F119: Factor expressing the effect of dimensions of the unit | H119: d2 | I119: = | J119: =Materiály!Q45 -> 0.77
E120: => | F120: Normalised mean compressive strength of the units | H120: fb2 | I120: = | J120: =J116*J118*J119 -> 7.7 | K120: MPa
D122: ▪ | E122: Compressive strength of the mortar (label) | H122: fm2 | I122: = | J122: 10 | K122: MPa
D123: ▪ | E123: Coefficient K
E124: ▪ | F124: Material of masonry units | G124: =J111 -> concrete
E125: ▪ | F125: Mortar | G125: general purpose
E126: ▪ | F126: Group of masonry units | J126: =J113 -> 1
E127: ▪ | F127: Is there a longitudinal perpend joint in the masonry? (=> multiply table value of K by 0.8?) | J127: Yes
E128: => | F128: Coefficient K | H128: K2 | I128: = | J128: =IF(J127="Yes",0.8*Mapping!M53,Mapping!M53) -> 0.36
D130: ▪ | E130: Characteristic compressive strength of the masonry | J130: =IF(J129="X","The combination of mortar and masonry unit is not used, values are not defined"," ") -> 
E131: ▪ | F131: Value of fb considered (fb ≤ 50 MPa if thin layer mortar is used, fb ≤ 75 Mpa otherwise) | H131: fb2 | I131: = | J131: =MIN(J120,IF(G125="thin layer (0,5-3 mm)",50,75)) -> 7.7 | K131: MPa
E132: ▪ | F132: Value of fm (fm ≤ 10 MPa if thin layer mortar is considered, fm ≤ min(20 MPa, 2fb) otherwise) | H132: fm2 | I132: = | J132: =MIN(J122,IF(G125="thin layer (0,5-3 mm)",10,MIN(20,2*J131))) -> 10 | K132: MPa
E134: => | F134: Characteristic compressive strength of the masonry | H134: fk2 | I134: = | J134: =IF(G125="thin layer (0,5-3 mm)",IF(AND(G88="clay",OR(J113=2,J113=3)),J128*POWER(J131,0.7),J128*POWER(J131,0.85)),J128*POWER(J131,0.7)*POWER(J132,0.3)) -> 2.998099268 | K134: MPa
F135: Formula used for calculation of characteristic compressive strength of the masonry:
F136: ▪ Masonry made with general purpose or lightweight mortar
F137: ▪ Masonry made with thin layer mortar, clay masonry units of groups 2 or 3
F138: ▪ Masonry made with thin layer mortar, masonry units other than clay units of groups 2 or 3
D139: => | E139: Characteristic compressive strength of the masonry - upper wall | H139: fk2 | I139: = | J139: =IF(J102=1,J100,IF(J102=2,J104,IF(J102=3,J134,"Select option"))) -> 5.4 | K139: MPa
C141: 2.4. | D141: Elastic modulus of the masonry - lower wall | J141: 1
D142: Direct input of the value | H142: E1 | I142: = | J142: 6800 | K142: MPa
D143: Determine the value from the equation E1 = 1000fk1
D144: => | E144: Elastic modulus of the masonry - lower wall | H144: E1 | I144: = | J144: =IF(J141=1,J142,IF(J141=2,J100*1000,"Select option")) -> 6800 | K144: MPa
C146: 2.5. | D146: Elastic modulus of the masonry - upper wall | J146: 1
D147: Adopt the value from lower wall
D148: Insert another value than for lower wall | H148: E2 | I148: = | K148: MPa
D149: Determine the value from the equation E2 = 1000fk2
D150: => | E150: Elastic modulus of the masonry - upper wall | H150: E2 | I150: = | J150: =IF(J146=1,J144,IF(J146=2,J148,IF(J146=3,J139*1000,"Select option"))) -> 6800 | K150: MPa
C152: 2.6. | D152: Elastic modulus of slab 3 | H152: E3 | I152: = | J152: 0 | K152: MPa
C154: 2.7. | D154: Elastic modulus of slab 4 | H154: E4 | I154: = | J154: 30500 | K154: MPa
B157: 3. | C157: Loads
C159: ▪ | D159: Design value of uniform continuous load of slab 3 | H159: f3 | I159: = | J159: 0 | K159: kN.m-2
C160: ▪ | D160: Design value of uniform continuous load of slab 4 | H160: f4 | I160: = | J160: 12.48 | K160: kN.m-2
C161: ▪ | D161: Design value of normal force in the bottom of upper wall 2 | H161: NEd,2 | I161: = | J161: 134 | K161: kN
C162: ▪ | D162: Design value of normal force in the top of lower wall 1 | H162: NEd,1 | I162: = | J162: 164 | K162: kN
B165: 4. | C165: Calculation of bending moments according to eqations C.1 a C.2 from the Eurocode 6 (basic approach)
C167: 4.1. | D167: Reduction factor h
D168: ▪ | E168: Coefficient km | H168: km | I168: = | J168: =MIN((IF(ISERROR(J34*J152*J53/J41),0,J34*J152*J53/J41)+IF(ISERROR(J36*J154*J54/J42),0,J36*J154*J54/J42))/(IF(ISERROR(J30*J144*J51/J39),0,J30*J144*J51/J39)+IF(ISERROR(J32*J150*J52/J40),0,J32*J150*J52/J40)),2) -> 0.1158392076
D169: ▪ | E169: Coefficient h | H169: h | I169: = | J169: =1-J168/4 -> 0.9710401981
C171: 4.2. | D171: Bending moments (adjusted by reduction factor)
D172: ▪ | E172: Design value of bending moment in the top of wall 1
H173: M1 | I173: = | J173: =-(IF(ISERROR(J30*J144*J51/J39),0,J30*J144*J51/J39)/(IF(ISERROR(J30*J144*J51/J39),0,J30*J144*J51/J39)+IF(ISERROR(J32*J150*J52/J40),0,J32*J150*J52/J40)+IF(ISERROR(J34*J152*J53/J41),0,J34*J152*J53/J41)+IF(ISERROR(J36*J154*J54/J42),0,J36*J154*J54/J42))*(IF(J34=0,0,J159)*POWER(J41,2)/(4*(J34-1))-IF(J36=0,0,J160)*POWER(J42,2)/(4*(J36-1))))*J169/1000000 -> 11.31303013 | K173: kNm
D174: ▪ | E174: Design value of bending moment in the bottom of wall 2
H175: M2 | I175: = | J175: =-(IF(ISERROR(J32*J150*J52/J40),0,J32*J150*J52/J40)/(IF(ISERROR(J30*J144*J51/J39),0,J30*J144*J51/J39)+IF(ISERROR(J32*J150*J52/J40),0,J32*J150*J52/J40)+IF(ISERROR(J34*J152*J53/J41),0,J34*J152*J53/J41)+IF(ISERROR(J36*J154*J54/J42),0,J36*J154*J54/J42))*(IF(J34=0,0,J159)*POWER(J41,2)/(4*(J34-1))-IF(J36=0,0,J160)*POWER(J42,2)/(4*(J36-1))))*J169/1000000 -> 11.31303013 | K175: kNm
D176: ▪ | E176: Design value of bending moment in slab 3 immediately next to the joint
H177: M3 | I177: = | J177: =(-IF(J34=0,0,J159)*POWER(J41,2)/(4*(J34-1))+(IF(ISERROR(J34*J152*J53/J41),0,J34*J152*J53/J41)/(IF(ISERROR(J30*J144*J51/J39),0,J30*J144*J51/J39)+IF(ISERROR(J32*J150*J52/J40),0,J32*J150*J52/J40)+IF(ISERROR(J34*J152*J53/J41),0,J34*J152*J53/J41)+IF(ISERROR(J36*J154*J54/J42),0,J36*J154*J54/J42))*(IF(J34=0,0,J159)*POWER(J41,2)/(4*(J34-1))-IF(J36=0,0,J160)*POWER(J42,2)/(4*(J36-1)))))*J169/1000000 -> 0 | K177: kNm
D178: ▪ | E178: Design value of bending moment in slab 4 immediately next to the joint
H179: M4 | I179: = | J179: =(-IF(J36=0,0,J160)*POWER(J42,2)/(4*(J36-1))-(IF(ISERROR(J36*J154*J54/J42),0,J36*J154*J54/J42)/(IF(ISERROR(J30*J144*J51/J39),0,J30*J144*J51/J39)+IF(ISERROR(J32*J150*J52/J40),0,J32*J150*J52/J40)+IF(ISERROR(J34*J152*J53/J41),0,J34*J152*J53/J41)+IF(ISERROR(J36*J154*J54/J42),0,J36*J154*J54/J42))*(IF(J34=0,0,J159)*POWER(J41,2)/(4*(J34-1))-IF(J36=0,0,J160)*POWER(J42,2)/(4*(J36-1)))))*J169/1000000 -> -22.62606026 | K179: kNm
B182: 5. | C182: Calculation of bending moments in the parapet joint
C184: 5.1. | D184: Scheme and presumptions of the calculation
F185: Presumption | J185: Met?
F186: ▪ Upper wall and one of the slabs is missing | J186: =IF(AND(J32=0,OR(J34=0,J36=0)),"Yes","No") -> No
F187: ▪ Eccentricity in the top of wall 1 is e1 = M1/NEd,1 ≥ 0,45t1 | J187: =IF(J162=0,"Yes",IF(ABS(J173/J162)>=0.45*J45/1000,"Yes","No")) -> No
F189: =IF(AND(J186="Yes",J187="Yes"),(" => Presumtions are met, bending moment in the top of wall 1 will be calculated as in the parapet joint"),(" => Presumtions are not met, this part of calculation will be ignored")) -> => Presumtions are not met, this part of calculation will be ignored
C194: 5.2. | D194: Calculation in the top of wall 1
D195: ▪ | E195: Design compressive strength of the masonry of wall 1 | H195: fd1 | I195: = | J195: =J100/J62 -> 2.7 | K195: MPa
D196: ▪ | E196: Minimum required bedding length | H196: x1 | I196: = | J196: =MIN(J162/J195,0.1*J45) -> 44 | K196: mm
D197: ▪ | E197: Design value of bending moment in the top of wall 1 | H197: M1 | I197: = | J197: =J162*(J45/2-J196)/1000 -> 28.864 | K197: kNm
B200: 6. | C200: Calculation of bending moments according to eqations C.3 a C.4 from the Eurocode 6
C201: (alternative approach for external joints where a slab is supported over part of the thickness of the wall)
C203: 6.1. | D203: Scheme and presumptions of the calculation
F204: Presumption | J204: Met?
F205: ▪ External joint | J205: =IF(OR(J34=0,J36=0),"Yes","No") -> Yes
F206: ▪ Not a parapet joint | J206: =IF(AND(J32=0,OR(J34=0,J36=0)),"No","Yes") -> Yes
F207: ▪ Slab is supported just over a part of the thickness of the wall, | J207: =IF(J208<>0,"Yes","No") -> Yes
F208: offset from the inner face of the wall is: | H208: a | I208: = | J208: 180 | K208: mm
F210: =IF(AND(J205="Yes",J206="Yes",J207="Yes",J208<>0),(" => Presumptions are met, bending moments in the walls can be calculated"),(" => Presumtions are not met, this part of calculation will be ignored")) -> => Presumptions are met, bending moments in the walls can be calculated
F211: =IF(AND(J205="Yes",J206="Yes",J207="Yes",J208<>0),(" according to alternative approach. Nevertheless, the research results show that "),("")) -> according to alternative approach. Nevertheless, the research results show that
F212: =IF(AND(J205="Yes",J206="Yes",J207="Yes",J208<>0),(" the moments obtained by this method can be unsafe. Therefore, this approach"),("")) -> the moments obtained by this method can be unsafe. Therefore, this approach
F213: =IF(AND(J205="Yes",J206="Yes",J207="Yes",J208<>0),(" is not recommended. Do you want to use it anyway?"),("")) -> is not recommended. Do you want to use it anyway? | J213: No
C216: 6.2. | D216: Calculation of bending moments in walls
D217: ▪ | E217: Design value of bending moment in the top of wall 1 1) | H217: M1 | I217: = | J217: =(J162-J161)*J208/2000+J161*(J45+J208)/4000 -> 23.47 | K217: kNm
D218: ▪ | E218: Design value of bending moment in the bottom of wall 2 1) | H218: M2 | I218: = | J218: =IF(J32=0,0,J161*(J45-3*J208)/4000) -> -3.35 | K218: kNm
D220: 1) | E220: Bending moments calculated in this part will be considered for the design of the wall only in case that they will be lower than the moments calculated according to the basic approach in part 4.
B223: 7. | C223: Final design bending moments and eccentricities
C225: 7.1. | D225: Bending moments | J225: 1
D226: ▪ | E226: =CONCATENATE("Design value of moment in the top of wall 1 (the value acc. to part ",IF(AND(J186="Yes",J187="Yes"),"5",IF(AND(J205="Yes",J206="Yes",J207="Yes",J213="Yes",ABS(J217)<ABS(J173)),"6","4"))," is considered)") -> Design value of moment in the top of wall 1 (the value acc. to part 4 is considered) | H226: M1 | I226: = | J226: =IF(AND(J186="Yes",J187="Yes"),J197,IF(AND(J205="Yes",J206="Yes",J207="Yes",J213="Yes",ABS(J217)<ABS(J173)),J217,J173)) -> 11.31303013 | K226: kNm
D227: ▪ | E227: =CONCATENATE("Design value of moment in the bottom of wall 2 (the value acc. to part ",IF(AND(J205="Yes",J206="Yes",J207="Yes",J213="Yes",ABS(J218)<ABS(J175)),"6","4")," is considered)") -> Design value of moment in the bottom of wall 2 (the value acc. to part 4 is considered) | H227: M2 | I227: = | J227: =IF(AND(J205="Yes",J206="Yes",J207="Yes",J213="Yes",ABS(J218)<ABS(J175)),J218,J175) -> 11.31303013 | K227: kNm
D228: ▪ | E228: Design value of moment in slab 3 immediately next to the joint | H228: M3 | I228: = | J228: =IF(AND(J186="Yes",J187="Yes"),0,J177) -> 0 | K228: kNm
D229: ▪ | E229: Design value of moment in slab 4 immediately next to the joint | H229: M4 | I229: = | J229: =IF(AND(J186="Yes",J187="Yes"),0,J179) -> -22.62606026 | K229: kNm
C231: 7.2. | D231: Eccentricities due to loads (signs are in line with the sign convention for wall moments) | J231: 2
D232: ▪ | E232: Eccentricity in the top of wall 1
E233: Calculate according to the Eurocode 6 using formula e1 = M1/NEd,1 ≤ 0,5t1
E234: Calculate conservatively from characteristic value of normal force in the top of wall 1 2) using formula e1 = M1/NEk,1 ≤ 0,5t1
E235: ▪ | F235: =IF(J32=0,"DO NOT USE - parapet joint","Characteristic value of normal force in the top of the wall 1") -> Characteristic value of normal force in the top of the wall 1 | H235: NEk,1 | I235: = | J235: 125 | K235: kN
E236: => | F236: Eccentricity in the top of wall 1 | H236: e1 | I236: = | J236: =IF(OR(J231=1,J32=0),IF(J162=0,J45/2,MIN(J45/2,J226/J162*1000)),IF(J231=2,IF(J235=0,J45/2,MIN(J45/2,J226/J235*1000)),"Select option")) -> 90.50424104 | K236: mm
D238: ▪ | E238: Eccentricity in the bottom of wall 2 according to formula e2 = M2d/N2d ≤ 0,5t2 | H238: e2 | I238: = | J238: =IF(J161=0,J46/2,MIN(J46/2,J227/J161*1000)) -> 84.42559798 | K238: mm
D240: 2) | E240: Comparison of results calculated according to Eurocode 6 with numerical model have shown that the bending moments calculated in the top of lower wall for external joints may be underestimated by up to 30 % when the basic approach is used. By using characteristic value of normal force, the eccentricity will be increased by 35 - 50 %, which should eliminate the problem.

Sheet Materiály
C4: Partial factor for masonry gM (according to Czech NA.2.1)
C5: Masonry made with units of: | E5: Material of the units
E6: Aerated concrete | G6: Other
C7: Category I, designed mortar | E7: 2.5 | G7: 2
C8: Category I, prescribed mortar | E8: 2.7 | G8: 2.2
C9: Category II | E9: 3 | G9: 2.5
C11: Category I = the producer guarantees that the compressive strength will be below the stated value for 5 % of the units at the most. Applicable for most units produced in EU countries.
C12: Category II = compressive strength does not meet the requirements for more than 5 % of the units. Natural stone units belong to this category.
C13: Designed mortar = produced in factory
C14: Prescribed mortar = prepared on the construction site
C18: Groups of masonry units
C19: Type of masonry units | D19: Group
D20: 1 | E20: 2 | F20: 3 | H20: 4
D21: Volume of all holes (% of the gross volume)
D22: - | E22: Vertical holes | H22: Horizontal holes
C23: concrete | D23: ≤ 25 | E23: 25 - 60 | F23: 60 - 70 | H23: 25 - 70
C24: dimensioned natural stone | D24: ≤ 25 | E24: not used | F24: not used | H24: not used
C25: clay | D25: ≤ 25 | E25: 25 - 55 | F25: 55 - 70 | H25: 25 - 70
C26: autoclaved aerated concrete | D26: ≤ 25 | E26: not used | F26: not used | H26: not used
C27: manufactured stone | D27: ≤ 25 | E27: not used | F27: not used | H27: not used
C28: calcium silicate | D28: ≤ 25 | E28: 25 - 55 | F28: not used | H28: not used
C30: Factor expressing the effect of conditioning method h
C31: Masonry units conditioned: | G31: h
C32: in the air (by reaching 6% moisture content) | G32: 1
C33: by saturation (under the water) | G33: 1.2
C34: by drying (by reaching dried state) | G34: 0.8
C36: Conditioning = reaching of equilibrium moisture content
C38: The d coefficient expressing effect of width and height of the brick | J38: Interpolation d1 | O38: Interpolation d2
C39: hp [mm] | D39: bp [mm]
D40: 50 | E40: 100 | F40: 150 | G40: 200 | H40: 250 | J40: bp,limited | K40: =IF(Výpočet!J68<50,50,IF(Výpočet!J68>250,250,Výpočet!J68)) -> 140 | L40: pos. bp | M40: =MATCH(K40,D40:H40) -> 2 | O40: bp,limited | P40: =IF(Výpočet!J107<50,50,IF(Výpočet!J107>250,250,Výpočet!J107)) -> 140 | Q40: pos. bp | R40: =MATCH(P40,D40:H40) -> 2
C41: 50 | D41: 0.85 | E41: 0.75 | F41: 0.7 | G41: 0.7 | H41: 0.65 | J41: hp,limited | K41: =IF(Výpočet!J69<50,50,IF(Výpočet!J69>250,250,Výpočet!J69)) -> 65 | L41: pos. hp | M41: =IF(K41<=250,MATCH(K41,C41:C46),250) -> 2 | O41: hp,limited | P41: =IF(Výpočet!J108<50,50,IF(Výpočet!J108>250,250,Výpočet!J108)) -> 65 | Q41: pos. hp | R41: =IF(P41<=250,MATCH(P41,C41:C46),250) -> 2
C42: 65 | D42: 0.95 | E42: 0.85 | F42: 0.75 | G42: 0.7 | H42: 0.65
C43: 100 | D43: 1.15 | E43: 1 | F43: 0.9 | G43: 0.8 | H43: 0.75 | K43: =IF(K40=50,50,IF(K40=250,250,INDEX(D40:H40,M40))) -> 100 | L43: =K40 -> 140 | M43: =IF(K40=50,50,IF(K40=250,250,INDEX(D40:H40,M40+1))) -> 150 | P43: =IF(P40=50,50,IF(P40=250,250,INDEX(D40:H40,R40))) -> 100 | Q43: =P40 -> 140 | R43: =IF(P40=50,50,IF(P40=250,250,INDEX(D40:H40,R40+1))) -> 150
C44: 150 | D44: 1.3 | E44: 1.2 | F44: 1.1 | G44: 1 | H44: 0.95 | J44: =IF(K41=50,50,IF(K41=250,250,INDEX(C41:C46,M41))) -> 65 | K44: =INDEX(D41:H46,M41,M40) -> 0.85 | L44: =IF(K44=M44,K44,(L43-K43)/(M43-K43)*(M44-K44)+K44) -> 0.77 | M44: =INDEX(D41:H46,M41,IF(M40=5,5,IF(K40=50,1,M40+1))) -> 0.75 | O44: =IF(P41=50,50,IF(P41=250,250,INDEX(C41:C46,R41))) -> 65 | P44: =INDEX(D41:H46,R41,R40) -> 0.85 | Q44: =IF(P44=R44,P44,(Q43-P43)/(R43-P43)*(R44-P44)+P44) -> 0.77 | R44: =INDEX(D41:H46,R41,IF(R40=5,5,IF(P40=50,1,R40+1))) -> 0.75
C45: 200 | D45: 1.45 | E45: 1.35 | F45: 1.25 | G45: 1.15 | H45: 1.1 | J45: =K41 -> 65 | K45: =IF(K44=K46,K44,K44-(J45-J44)/(J46-J44)*(K44-K46)) -> 0.85 | L45: =IF(L44=L46,L44,L44-(K45-K44)/(K46-K44)*(L44-L46)) -> 0.77 | M45: =IF(M44=M46,M44,M44-(J45-J44)/(J46-J44)*(M44-M46)) -> 0.75 | O45: =P41 -> 65 | P45: =IF(P44=P46,P44,P44-(O45-O44)/(O46-O44)*(P44-P46)) -> 0.85 | Q45: =IF(Q44=Q46,Q44,Q44-(P45-P44)/(P46-P44)*(Q44-Q46)) -> 0.77 | R45: =IF(R44=R46,R44,R44-(O45-O44)/(O46-O44)*(R44-R46)) -> 0.75
C46: 250 | D46: 1.55 | E46: 1.45 | F46: 1.35 | G46: 1.25 | H46: 1.15 | J46: =IF(K41=50,50,IF(K41=250,250,INDEX(C41:C46,M41+1))) -> 100 | K46: =INDEX(D41:H46,IF(M41=6,6,IF(K41=50,1,M41+1)),M40) -> 1 | L46: =IF(K46=M46,K46,(L43-K43)/(M43-K43)*(M46-K46)+K46) -> 0.92 | M46: =INDEX(D41:H46,IF(M41=6,6,IF(K41=50,1,M41+1)),IF(M40=5,5,IF(K40=50,1,M40+1))) -> 0.9 | O46: =IF(P41=50,50,IF(P41=250,250,INDEX(C41:C46,R41+1))) -> 100 | P46: =INDEX(D41:H46,IF(R41=6,6,IF(P41=50,1,R41+1)),R40) -> 1 | Q46: =IF(P46=R46,P46,(Q43-P43)/(R43-P43)*(R46-P46)+P46) -> 0.92 | R46: =INDEX(D41:H46,IF(R41=6,6,IF(P41=50,1,R41+1)),IF(R40=5,5,IF(P40=50,1,R40+1))) -> 0.9
C48: If a dimension is less than 50 mm, take the value for 50 mm
C49: If a dimension is more than 250 mm, take the value for 250 mm
C51: K coefficient
C52: Type of masonry units | D52: Group | E52: Mortar
E53: general purpose | F53: thin layer (0,5-3 mm) | H53: lightweight (600 - 800 kg.m-3) | J53: lightweight (800-1300 kg.m-3)
C54: clay | D54: 1 | E54: 0.55 | F54: 0.75 | H54: 0.3 | J54: 0.4
D55: 2 | E55: 0.45 | F55: 0.7 | H55: 0.25 | J55: 0.3
D56: 3 | E56: 0.35 | F56: 0.5 | H56: 0.2 | J56: 0.25
D57: 4 | E57: 0.35 | F57: 0.35 | H57: 0.2 | J57: 0.25
C58: calcium silicate | D58: 1 | E58: 0.55 | F58: 0.8 | H58: X | J58: X
D59: 2 | E59: 0.45 | F59: 0.65 | H59: X | J59: X
C60: concrete | D60: 1 | E60: 0.55 | F60: 0.8 | H60: 0.45 | J60: 0.45
D61: 2 | E61: 0.45 | F61: 0.65 | H61: 0.45 | J61: 0.45
D62: 3 | E62: 0.4 | F62: 0.5 | H62: X | J62: X
D63: 4 | E63: 0.35 | F63: X | H63: X | J63: X
C64: autoclaved aerated concrete | D64: 1 | E64: 0.55 | F64: 0.8 | H64: 0.45 | J64: 0.45
C65: manufactured stone | D65: 1 | E65: 0.45 | F65: 0.75 | H65: X | J65: X
C66: dimensioned natural stone | D66: 1 | E66: 0.45 | F66: X | H66: X | J66: X
C68: X = the combination of mortar and masonry unit is not used, values are not defined
C72: Elastic modulus of concrete
C73: Concrete class | D73: Elastic modulus [MPa]
C74: C 12/15 | D74: 26000
C75: C 16/20 | D75: 27500
C76: C 20/25 | D76: 29000
C77: C 25/30 | D77: 30500
C78: C 30/37 | D78: 32000
C79: C 35/45 | D79: 33500
C80: C 40/50 | D80: 35000
C81: C 45/55 | D81: 36000
C82: C 50/60 | D82: 37000

Sheet Mapping
C3: Coefficient K1
C5: MappingTable | G5: LookUpTable for K | P5: This sheet serves as an aid for automatic lookup of certain values
C6: A | D6: Item | E6: Code | G6: Element | H6: Group | I6: Element +Group | J6: Mortar
C7: Group | D7: 1 | E7: 1 | J7: 100 | K7: 200 | L7: 300 | M7: 400
D8: 2 | E8: 2 | G8: 10 | H8: 1 | I8: =G8+H8 -> 11 | J8: 0.55 | K8: 0.75 | L8: 0.3 | M8: 0.4
D9: 3 | E9: 3 | G9: 10 | H9: 2 | I9: =G9+H9 -> 12 | J9: 0.45 | K9: 0.7 | L9: 0.25 | M9: 0.3
D10: 4 | E10: 4 | G10: 10 | H10: 3 | I10: 13 | J10: 0.35 | K10: 0.5 | L10: 0.2 | M10: 0.25
C11: Element | D11: concrete | E11: 30 | G11: 10 | H11: 4 | I11: 14 | J11: 0.35 | K11: 0.35 | L11: 0.2 | M11: 0.25
D12: dimensioned natural stone | E12: 60 | G12: 20 | H12: 1 | I12: 21 | J12: 0.55 | K12: 0.8 | L12: X | M12: X
D13: clay | E13: 10 | G13: 20 | H13: 2 | I13: 22 | J13: 0.45 | K13: 0.65 | L13: X | M13: X
D14: autoclaved aerated concrete | E14: 40 | G14: 30 | H14: 1 | I14: 31 | J14: 0.55 | K14: 0.8 | L14: 0.45 | M14: 0.45
D15: manufactured stone | E15: 50 | G15: 30 | H15: 2 | I15: 32 | J15: 0.45 | K15: 0.65 | L15: 0.45 | M15: 0.45
D16: calcium silicate | E16: 20 | G16: 30 | H16: 3 | I16: 33 | J16: 0.4 | K16: 0.5 | L16: X | M16: X
C17: Mortar | D17: general purpose | E17: 300 | G17: 30 | H17: 4 | I17: 34 | J17: 0.35 | K17: X | L17: X | M17: X
D18: thin layer (0,5-3 mm) | E18: 400 | G18: 40 | H18: 1 | I18: 41 | J18: 0.55 | K18: 0.8 | L18: 0.45 | M18: 0.45
D19: lightweight (600 - 800 kg.m-3) | E19: 100 | G19: 50 | H19: 1 | I19: 51 | J19: 0.45 | K19: 0.75 | L19: X | M19: X
D20: lightweight (800-1300 kg.m-3) | E20: 200 | G20: 60 | H20: 1 | I20: 61 | J20: 0.45 | K20: X | L20: X | M20: X
C21: Codes | D21: GroupCode | E21: =VLOOKUP(Výpočet!J87,Mapping!D7:E10,2,FALSE) -> 1
D22: ElementCode | E22: =VLOOKUP(Výpočet!G85,Mapping!D11:E16,2,FALSE) -> 30 | J22: Element+GroupCode Row | M22: =MATCH(E22+E21,I8:I20,FALSE) -> 7
D23: MortarCode | E23: =VLOOKUP(Výpočet!G86,Mapping!D17:E20,2,FALSE) -> 300 | J23: MortarCode Column | M23: =MATCH(E23,J7:M7,FALSE) -> 3
J24: Coefficient K | M24: =INDEX(J8:M20,M22,M23) -> 0.45
J26: TransferValue | M26: =IF(ISERROR(Mapping!M24)=TRUE,"X",IF(Mapping!M24="X","X",Mapping!M24)) -> 0.45
C30: Coefficient K2
C32: MappingTable | G32: LookUpTable for K
C33: A | D33: Item | E33: Code | G33: Element | H33: Group | I33: Element +Group | J33: Mortar
C34: Group | D34: 1 | E34: 1 | J34: 100 | K34: 200 | L34: 300 | M34: 400
D35: 2 | E35: 2 | G35: 10 | H35: 1 | I35: =G35+H35 -> 11 | J35: 0.55 | K35: 0.75 | L35: 0.3 | M35: 0.4
D36: 3 | E36: 3 | G36: 10 | H36: 2 | I36: =G36+H36 -> 12 | J36: 0.45 | K36: 0.7 | L36: 0.25 | M36: 0.3
D37: 4 | E37: 4 | G37: 10 | H37: 3 | I37: 13 | J37: 0.35 | K37: 0.5 | L37: 0.2 | M37: 0.25
C38: Element | D38: concrete | E38: 30 | G38: 10 | H38: 4 | I38: 14 | J38: 0.35 | K38: 0.35 | L38: 0.2 | M38: 0.25
D39: dimensioned natural stone | E39: 60 | G39: 20 | H39: 1 | I39: 21 | J39: 0.55 | K39: 0.8 | L39: X | M39: X
D40: clay | E40: 10 | G40: 20 | H40: 2 | I40: 22 | J40: 0.45 | K40: 0.65 | L40: X | M40: X
D41: autoclaved aerated concrete | E41: 40 | G41: 30 | H41: 1 | I41: 31 | J41: 0.55 | K41: 0.8 | L41: 0.45 | M41: 0.45
D42: manufactured stone | E42: 50 | G42: 30 | H42: 2 | I42: 32 | J42: 0.45 | K42: 0.65 | L42: 0.45 | M42: 0.45
D43: calcium silicate | E43: 20 | G43: 30 | H43: 3 | I43: 33 | J43: 0.4 | K43: 0.5 | L43: X | M43: X
C44: Mortar | D44: general purpose | E44: 300 | G44: 30 | H44: 4 | I44: 34 | J44: 0.35 | K44: X | L44: X | M44: X
D45: thin layer (0,5-3 mm) | E45: 400 | G45: 40 | H45: 1 | I45: 41 | J45: 0.55 | K45: 0.8 | L45: 0.45 | M45: 0.45
D46: lightweight (600 - 800 kg.m-3) | E46: 100 | G46: 50 | H46: 1 | I46: 51 | J46: 0.45 | K46: 0.75 | L46: X | M46: X
D47: lightweight (800-1300 kg.m-3) | E47: 200 | G47: 60 | H47: 1 | I47: 61 | J47: 0.45 | K47: X | L47: X | M47: X
C48: Codes | D48: GroupCode | E48: =VLOOKUP(Výpočet!J113,Mapping!D34:E37,2,FALSE) -> 1
D49: ElementCode | E49: =VLOOKUP(Výpočet!G124,Mapping!D38:E43,2,FALSE) -> 30 | J49: Element+GroupCode Row | M49: =MATCH(E49+E48,I35:I47,FALSE) -> 7
D50: MortarCode | E50: =VLOOKUP(Výpočet!G125,Mapping!D44:E47,2,FALSE) -> 300 | J50: MortarCode Column | M50: =MATCH(E50,J34:M34,FALSE) -> 3
J51: Coefficient K | M51: =INDEX(J35:M47,M49,M50) -> 0.45
J53: TransferValue | M53: =IF(ISERROR(Mapping!M51)=TRUE,"X",IF(Mapping!M51="X","X",Mapping!M51)) -> 0.45

Sheet Nápověda
B3: 1. | C3: General
C4: ▪ | D4: The calculation is in accordance with valid standards, mainly Eurocode 1 and Eurocode 6.
C5: ▪ | D5: Program was created as a tool for determination of load eccentricity of masonry walls in any type of joint. The fact that some members might not exist in external or parapet joints is taken into account in the beginning of the calculation.
C6: ▪ | D6: Excel spreadsheet for determination of eccentricity worked out by Ing. Pavel Košatka, CSc. in 2004 was consulted during preparation of this program. This program updates Košatka's spreadsheet, expands its applicability and improves user interface.
C7: ▪ | D7: Automatic cells are calculated based on the formulas presented in the program or adpoted from the tables.
C8: ▪ | D8: For full functionality of the program, it is necessary to enable macros, otherwise the buttons will not work (remaining functions will be preserved).
B10: 2. | C10: Data input
C11: ▪ | D11: Only white cells are meant for user input. All white cells must be filled in for correct calculation. The rest of the cells is locked by default to prevent unwanted changes in formulas. If needed, the sheets can be unlocked anytime as no password is set.
C12: ▪ | D12: Grey cells behave like white ones, changes are allowed. Nevertheless, they are inactive - they do not influence the calculation. They are taken into account only after proper radio button is selected and the cell becomes white.
C13: ▪ | D13: After activation of some white cells, list of possible entry values appears. In that case, program will not allow the user to insert the value that is not in the list. If the user is not sure about the selection of the value, the information required might be in some cases obtained by clicking on the button in the beginning of respective section of the calculation. After reading the information, the user can return back to initial position by clicking "Back" button. In any case, a value must be filled in, otherwise successful calculation will not be possible.
C14: ▪ | D14: In several places in the program one must select one of the proposed calculation scenarios. After selecting the options, further parameters must be specified to finish the calculation.
C15: ▪ | D15: Entering some evidently uncorrect values like negative dimension of bricks etc. is prohibited by the program. In some other cases, when the value seems to be incorrect, red warning informing the user about inappropriate entry appears before the value (e.g. when no horizontal member is entered).
C16: ▪ | D16: To delete all the manually entered values, use "Delete input values" button from the menu
B18: 3. | C18: Print
C19: ▪ | D19: All the sheets are set up for printing to A4 papers
